bitfinex/quotes_ETHUSD_20250611
["timestamp","ask_amount","ask_price","bid_price","bid_amount"]
[1749641015143,10.43939386,2762.5,2762.3,0.00346346]
[1749641015373,3.692,2762.4,2762.3,0.00346346]
[1749641015981,1.0091,2763.1,2762.4,0.8125]
[1749641016199,3.693,2763.0,2762.5,1.44688121]
[1749641016403,3.693,2763.0,2762.9,0.1808]
[1749641016767,0.55,2762.9,2762.4,2.17032182]
[1749641016975,1.3002,2762.6,2762.0,0.8325]
[1749641017168,3.695,2762.5,2762.0,0.8325]
[1749641017680,3.695,2762.5,2762.1,1.44720595]
[1749641019718,3.694,2762.4,2762.2,1.44720595]
[1749641019884,3.694,2762.3,2762.2,1.44720595]
[1749641020075,3.694,2762.3,2762.1,1.44720595]
[1749641020988,3.694,2762.3,2762.2,1.44720595]
[1749641022382,3.694,2762.3,2762.0,0.8325]
[1749641023102,3.694,2762.3,2762.1,1.44717836]
[1749641023300,3.694,2762.3,2762.2,1.44717836]
[1749641023799,3.694,2762.3,2762.1,1.44717836]
[1749641026588,4.8228,2762.3,2762.0,1.44717836]
[1749641026996,4.8228,2762.3,2761.9,1.62797836]
[1749641027318,4.8228,2762.3,2762.1,1.44717836]
[1749641027539,4.8228,2762.3,2761.9,0.1808]
[1749641027735,4.4534,2762.3,2761.9,0.1808]
[1749641028306,4.4534,2762.3,2762.0,1.44730104]
[1749641030338,4.4534,2762.3,2762.1,1.44730104]
[1749641030837,4.4534,2762.3,2762.0,1.44730104]
[1749641032047,4.4534,2762.3,2762.1,0.00346371]
[1749641032208,5.88456939,2762.3,2762.1,0.00346371]
[1749641033861,0.55,2762.2,2762.1,0.00346371]
[1749641034012,10.55,2762.2,2762.1,0.00346371]
[1749641034212,14.24,2762.2,2762.1,0.00346371]
[1749641034636,0.1808,2762.1,2761.7,1.44737841]
[1749641036442,0.1808,2762.1,2761.7,2.26057841]
[1749641036623,3.689,2762.0,2761.7,2.26057841]
[1749641036810,3.689,2762.0,2761.8,0.1808]
[1749641037711,1.3387,2761.9,2761.5,1.44737841]
[1749641037907,3.62122035,2761.5,2761.4,1.62817841]
[1749641038141,0.55,2761.4,2761.0,0.7821]
[1749641038369,0.55,2761.4,2761.0,0.1808]
[1749641038527,0.55,2761.4,2761.1,0.0026077]
[1749641038943,0.9695,2761.5,2761.2,1.44777581]
[1749641038944,3.695,2761.3,2761.2,1.44777581]
[1749641040819,3.694,2761.3,2761.2,2.41178341]
[1749641041443,3.694,2761.3,2761.2,2.40917581]
[1749641041925,0.1808,2761.7,2761.2,2.40917581]
[1749641042141,3.694,2761.6,2761.2,2.40917581]
[1749641046076,3.692,2761.9,2761.5,1.44757164]
[1749641046235,3.692,2761.8,2761.6,0.1808]
[1749641047458,0.55,2762.0,2761.6,0.1808]
[1749641047459,3.692,2761.7,2761.6,0.1808]
[1749641047758,0.1808,2762.1,2761.7,0.764]
[1749641047957,10.0,2762.4,2761.7,0.764]
[1749641048165,3.692,2762.3,2761.9,0.1808]
[1749641048667,0.55,2762.3,2761.9,0.1808]
[1749641048842,3.692,2762.2,2761.9,0.1808]
[1749641049042,3.692,2762.1,2761.7,0.764]
[1749641049246,3.692,2762.1,2762.0,0.1808]
[1749641049740,0.9348,2762.5,2762.0,1.62809282]
[1749641049947,3.692,2762.4,2762.1,1.44729282]
[1749641050147,3.692,2762.4,2762.2,0.1808]
[1749641051180,7.75665291,2762.4,2762.2,0.1808]
[1749641051574,4.1366,2762.4,2762.2,0.1808]
[1749641053344,10.47751036,2762.4,2762.2,0.1808]
[1749641054979,10.47751036,2762.4,2762.3,0.00196168]
[1749641056258,11.02751036,2762.4,2762.3,0.00196168]
[1749641056460,11.20831036,2762.4,2762.3,0.00196168]
[1749641056862,14.8283509,2762.4,2762.3,0.00196168]
[1749641057062,11.20831036,2762.4,2762.3,0.00196168]
[1749641057471,14.8283509,2762.4,2762.3,0.00196168]
[1749641057684,0.55,2762.3,2761.9,1.62809793]
[1749641058397,0.55,2762.1,2761.9,1.62809793]
[1749641058567,3.688,2762.0,2761.8,1.44729793]
[1749641059171,3.688,2762.0,2761.7,0.1808]
[1749641060174,3.688,2762.0,2761.8,1.44736501]
[1749641060908,0.8093,2762.6,2761.9,1.44736501]
[1749641061108,0.8093,2762.6,2762.0,2.26778402]
[1749641061109,3.688,2762.5,2762.0,2.26778402]
[1749641061400,3.688,2762.5,2762.1,0.1808]
[1749641062787,1.35206775,2762.6,2762.1,0.1808]
[1749641063101,3.689,2762.5,2762.2,0.1808]
[1749641063399,3.688,2762.4,2762.2,1.62808402]
[1749641070807,4.76560606,2763.0,2762.2,1.62808402]
[1749641070808,0.8254,2763.0,2762.3,7.09651036]
[1749641071008,0.1808,2763.1,2762.7,0.1808]
[1749641071319,3.686,2762.9,2762.7,0.1808]
[1749641071823,0.1808,2763.1,2762.7,0.1808]
[1749641072021,0.8254,2763.2,2762.7,7.34811036]
[1749641072227,3.685,2763.1,2763.0,0.1808]
[1749641073084,3.685,2763.1,2763.0,1.26590519]
[1749641073616,3.687,2763.1,2763.0,0.1808]
[1749641074513,3.687,2763.1,2763.0,1.2646331]
[1749641074712,3.687,2763.1,2763.0,2.45448402]
[1749641075115,0.1808,2763.7,2763.0,1.0072]
[1749641075292,0.20298356,2763.9,2763.4,8.21161508]
[1749641075629,3.688,2763.8,2763.6,0.1808]
[1749641075822,3.688,2763.8,2763.6,1.26450472]
[1749641076404,3.688,2763.8,2763.6,0.1808]
[1749641077227,3.688,2763.7,2763.6,0.1808]
[1749641078615,0.20298356,2763.9,2763.7,0.7754]
[1749641078829,3.689,2763.8,2763.7,1.8556139]
[1749641079027,3.689,2763.8,2763.7,0.7754]
[1749641079235,3.689,2763.8,2763.7,0.9562]
[1749641079943,3.689,2763.8,2763.7,0.1808]
[1749641082942,3.689,2763.8,2763.5,0.1808]
[1749641084716,3.689,2763.8,2763.4,1.0802139]
[1749641084717,3.689,2763.8,2763.6,0.1808]
[1749641085447,3.689,2763.8,2763.2,2.2471852]
[1749641085448,0.7569,2763.7,2763.3,1.0802139]
[1749641085651,0.7569,2763.7,2763.5,0.1808]
[1749641087057,4.37526499,2763.7,2763.5,0.1808]
[1749641087250,0.7569,2763.7,2763.5,0.1808]
[1749641087452,0.7569,2763.7,2763.2,1.0802139]
[1749641087453,4.10198392,2763.6,2763.2,1.0802139]
[1749641087651,10.50958012,2763.5,2763.0,1.0802139]
[1749641087951,3.688,2763.4,2763.1,0.1808]
[1749641089559,7.30677392,2763.4,2763.1,0.1808]
[1749641090261,3.688,2763.4,2763.1,0.1808]
[1749641090459,1.41975616,2763.3,2763.1,0.1808]
[1749641094675,8.56196652,2763.3,2763.1,0.1808]
[1749641097275,3.61938542,2762.9,2762.8,1.08070194]
[1749641097478,13.64429578,2762.9,2762.7,0.1808]
[1749641098077,7.30338542,2762.9,2762.7,0.1808]
[1749641098277,3.684,2762.9,2762.7,0.1808]
[1749641098845,9.02973289,2762.9,2762.7,0.1808]
[1749641099345,5.41034051,2762.9,2762.7,0.1808]
[1749641099846,9.02973701,2762.9,2762.7,0.1808]
[1749641100050,9.78543701,2762.9,2762.4,1.08070194]
[1749641100294,3.6196481,2762.7,2762.5,0.1808]
[1749641100495,3.683,2762.6,2762.3,1.26150194]
[1749641100661,3.683,2762.6,2762.3,0.1808]
[1749641100662,4.41480672,2762.5,2762.3,0.1808]
[1749641100862,2.21658629,2762.5,2762.3,0.1808]
[1749641101192,1.42178629,2762.5,2762.3,0.1808]
[1749641101397,0.1808,2762.8,2762.3,1.0007]
[1749641101547,3.685,2762.7,2762.4,0.1808]
[1749641101748,3.685,2762.6,2762.3,8.2415123]
[1749641101999,3.685,2762.6,2762.4,1.08070194]
[1749641102203,3.685,2762.6,2762.5,0.1808]
[1749641102347,1.5256,2763.1,2762.5,0.1808]
[1749641102570,2.23335616,2763.3,2762.6,0.8285]
[1749641102792,3.686,2763.2,2762.8,0.1808]
[1749641104598,3.686,2763.2,2762.8,1.26150194]
[1749641104799,7.30499556,2763.2,2762.8,1.26150194]
[1749641104947,9.13089984,2763.2,2762.8,1.26150194]
[1749641105302,9.13089984,2763.2,2762.9,1.08070194]
[1749641105303,15.4718102,2763.2,2762.9,1.08070194]
[1749641105800,11.85281464,2763.2,2762.8,1.26150194]
[1749641106200,5.51190428,2763.2,2762.9,1.08070194]
[1749641106556,0.55,2763.1,2762.9,1.08070194]
[1749641106898,0.55,2763.1,2762.8,1.26150194]
[1749641108001,1.3478,2762.9,2762.8,1.08070194]
[1749641108147,1.3478,2762.9,2762.6,1.4402852]
[1749641108148,3.61951643,2762.8,2762.7,1.08070194]
[1749641108345,10.69122679,2762.8,2762.6,1.08070194]
[1749641108563,10.69122679,2762.8,2762.3,0.1808]
[1749641108564,4.16964744,2762.7,2762.5,1.08070194]
[1749641108760,13.64668882,2762.6,2762.4,1.08070194]
[1749641109584,1.3687,2762.5,2762.3,1.08070194]
[1749641109769,0.7308,2762.4,2762.3,1.08070194]
[1749641110270,4.4188,2762.4,2762.3,1.08070194]
[1749641110470,0.7308,2762.4,2762.3,1.08390096]
[1749641110678,4.4178,2762.4,2761.9,0.1808]
[1749641110984,0.954,2763.2,2761.8,0.8066]
[1749641110985,0.9719,2763.0,2762.3,0.1808]
[1749641111189,6.34091036,2763.3,2762.5,6.34091036]
[1749641111190,0.1808,2763.1,2762.5,6.34091036]
[1749641111360,3.691,2763.0,2762.9,0.1808]
[1749641111953,3.69,2763.0,2762.9,0.1808]
[1749641113053,10.50937683,2763.7,2762.9,0.1808]
[1749641113054,3.692,2763.1,2763.0,0.7723]
[1749641113483,3.692,2763.1,2763.0,2.03700096]
[1749641114088,3.692,2763.1,2763.0,0.9531]
[1749641114686,0.9422,2763.7,2763.0,0.9531]
[1749641114687,0.7308,2763.7,2763.0,2.03700096]
[1749641114852,3.694,2763.6,2763.0,2.03700096]
[1749641115053,3.694,2763.6,2763.3,0.1808]
[1749641115265,4.13648,2763.6,2763.3,0.1808]
[1749641116773,0.44248,2763.6,2763.3,0.1808]
[1749641116978,0.7308,2763.7,2763.3,0.1808]
[1749641117290,0.96568356,2763.9,2763.5,0.1808]
[1749641117291,3.692,2763.6,2763.5,0.1808]
[1749641117855,3.692,2763.6,2763.2,1.08390096]
[1749641117856,0.55,2763.5,2763.2,1.08390096]
[1749641118058,0.50718,2763.4,2763.1,0.1808]
[1749641119803,4.7026,2763.6,2763.1,0.1808]
[1749641119804,1.0106,2763.6,2763.1,0.1808]
[1749641119982,0.55,2763.8,2763.2,1.87610096]
[1749641120186,3.694,2763.5,2763.3,0.1808]
[1749641121095,3.694,2763.5,2763.3,1.26470096]
[1749641121410,3.694,2763.5,2763.4,1.08390096]
[1749641122194,3.693,2763.6,2763.4,1.08390096]
[1749641122594,3.693,2763.6,2763.5,0.1808]
[1749641123177,3.693,2763.6,2763.3,1.08390096]
[1749641123399,3.693,2763.6,2763.3,1.26470096]
[1749641123901,3.693,2763.6,2763.3,0.1808]
[1749641125166,3.693,2763.6,2763.3,1.26470096]
[1749641126984,0.1808,2763.8,2763.3,1.26470096]
[1749641127173,3.691,2763.5,2763.4,0.8229]
[1749641127380,3.691,2763.6,2763.4,0.8229]
[1749641127891,3.691,2763.6,2763.5,0.1808]
[1749641129975,0.9311,2764.2,2763.5,1.261086]
[1749641130175,3.691,2764.1,2763.8,0.1808]
[1749641130382,3.691,2764.0,2763.8,0.1808]
[1749641133204,0.7677,2763.9,2763.4,0.8229]
[1749641133426,0.7677,2763.9,2763.2,1.080286]
[1749641133427,6.33485698,2763.5,2763.2,1.080286]
[1749641133581,3.692,2763.4,2763.2,0.1808]
[1749641138392,3.692,2763.4,2763.3,0.1808]
[1749641139500,4.524,2763.4,2763.0,1.080286]
[1749641139820,5.33825269,2763.4,2763.2,0.1808]
[1749641140190,4.50625269,2763.4,2763.2,0.1808]
[1749641141694,3.688,2763.5,2763.4,0.1808]
[1749641141893,3.688,2763.5,2763.4,1.261086]
[1749641142102,1.5628,2763.9,2763.4,1.261086]
[1749641142290,2.66541,2764.2,2763.5,1.897686]
[1749641142514,3.689,2764.1,2763.7,0.1808]
[1749641142700,0.55,2764.0,2763.6,1.080286]
[1749641142902,4.34875839,2764.0,2763.5,1.261086]
[1749641143126,0.7308,2764.0,2763.5,1.261086]
[1749641143324,0.7953,2764.2,2763.5,1.080286]
[1749641143627,3.691,2763.9,2763.8,0.1808]
[1749641145323,0.1808,2764.3,2763.8,1.26277115]
[1749641145507,3.69,2763.9,2763.8,1.26277115]
[1749641145714,3.69,2764.0,2763.8,0.1808]
[1749641145916,0.1808,2764.3,2763.9,1.08192672]
[1749641146113,3.691,2764.0,2763.8,1.26272672]
[1749641146313,4.5012,2764.0,2763.8,1.26272672]
[1749641146619,4.5012,2764.0,2763.7,1.08192672]
[1749641147443,0.55,2763.9,2763.5,1.08192672]
[1749641147735,1.26922483,2764.2,2763.5,1.08192672]
[1749641147935,3.694,2763.8,2763.7,1.26272672]
[1749641148309,3.694,2763.8,2763.7,0.1808]
[1749641148742,3.694,2763.8,2763.7,1.26278738]
[1749641148916,3.694,2763.8,2763.7,1.26279111]
[1749641149118,3.694,2763.8,2763.7,1.26279387]
[1749641149314,3.694,2763.8,2763.7,0.1808]
[1749641149622,3.694,2763.8,2763.7,1.2627896]
[1749641150403,3.692,2763.8,2763.7,1.2627896]
[1749641150817,3.692,2763.9,2763.7,0.1808]
[1749641151017,3.692,2763.9,2763.8,1.08195593]
[1749641151217,3.692,2763.9,2763.8,1.26275593]
[1749641151852,3.692,2763.9,2763.8,1.26275019]
[1749641152161,3.692,2764.0,2763.8,0.1808]
[1749641152436,3.692,2764.0,2763.8,1.6210852]
[1749641154740,3.692,2764.0,2763.8,0.1808]
[1749641155730,3.692,2764.0,2763.8,1.26280454]
[1749641161715,4.3851759,2763.9,2763.8,1.08200454]
[1749641161916,0.7671,2763.9,2763.4,1.08200454]
[1749641162128,0.7671,2764.1,2763.6,1.08200454]
[1749641162353,3.695,2764.0,2763.7,1.08200454]
[1749641162516,3.695,2764.0,2763.6,1.85990454]
[1749641162722,6.33294037,2763.9,2763.6,1.08200454]
[1749641162929,4.16846866,2763.6,2763.5,1.0823435]
[1749641163237,15.68508515,2763.6,2763.3,1.0823435]
[1749641163439,6.33294037,2763.4,2763.3,1.0823435]
[1749641163663,9.9517435,2763.4,2763.2,1.0823435]
[1749641163864,9.9517435,2763.4,2763.1,1.0823435]
[1749641163865,2.15023861,2763.3,2763.1,1.0823435]
[1749641164155,10.03094037,2763.2,2763.1,1.0823435]
[1749641164365,10.03094037,2763.2,2763.0,1.0823435]
[1749641164724,10.03094037,2763.2,2762.7,2.16400909]
[1749641164725,10.03094037,2763.2,2763.1,1.0823435]
[1749641164934,11.97282822,2763.2,2763.0,1.0823435]
[1749641165130,15.59189848,2763.2,2763.0,1.0823435]
[1749641165455,9.25895811,2763.2,2762.5,0.958]
[1749641165836,0.55,2762.9,2762.5,0.958]
[1749641166035,3.7,2762.8,2762.5,0.958]
[1749641166245,3.7,2762.8,2762.7,1.44694099]
[1749641171263,3.7,2762.8,2762.6,1.44694099]
[1749641171634,3.7,2762.8,2762.7,1.44694099]
[1749641173249,3.7,2762.8,2762.6,1.44694099]
[1749641175071,3.7,2762.8,2762.7,1.44694099]
[1749641175364,3.7,2762.8,2762.6,1.44694099]
[1749641175730,3.7,2762.8,2762.5,0.1808]
[1749641177357,0.7951,2762.9,2762.5,0.1808]
[1749641177547,3.694,2762.8,2762.5,0.1808]
[1749641184370,3.69,2762.7,2762.2,0.8217]
[1749641184743,3.69,2762.7,2762.6,0.1808]
[1749641187479,3.688,2762.7,2762.6,0.1808]
[1749641189689,0.8175,2763.1,2762.6,0.1808]
[1749641189891,0.55,2763.5,2762.7,0.8127]
[1749641190202,0.55,2763.3,2762.9,0.1808]
[1749641190395,0.44188,2763.2,2762.9,0.1808]
[1749641193157,0.1808,2763.4,2762.9,0.1808]
[1749641193480,3.686,2763.3,2763.2,0.1808]
[1749641193888,7.9508,2763.7,2763.2,0.9488]
[1749641194059,3.686,2763.6,2763.2,0.9488]
[1749641194257,3.686,2763.6,2763.3,0.1808]
[1749641195352,4.80638027,2763.6,2763.3,0.1808]
[1749641195791,3.686,2763.6,2763.3,0.1808]
[1749641195990,7.77,2763.7,2763.3,0.1808]
[1749641195991,11.38834742,2763.7,2763.3,0.1808]
[1749641196201,10.02317899,2763.6,2763.3,0.1808]
[1749641198791,3.684,2763.5,2763.3,0.1808]
[1749641199896,0.1808,2763.8,2763.4,0.7948]
[1749641200191,3.685,2763.7,2763.4,0.9756]
[1749641200390,3.685,2763.7,2763.4,0.7948]
[1749641200591,3.685,2763.7,2763.6,0.1808]
[1749641201088,4.8523,2763.7,2763.2,0.7948]
[1749641201294,4.8523,2763.7,2763.3,0.1808]
[1749641201595,8.4706395,2763.7,2763.3,0.1808]
[1749641201765,8.4706395,2763.7,2763.5,1.08495413]
[1749641201965,7.83604084,2763.6,2763.5,1.08495413]
[1749641202856,12.0045095,2763.6,2763.5,1.08495413]
[1749641203056,4.3493996,2763.5,2763.3,1.08495413]
[1749641203257,4.1688615,2763.3,2763.2,1.08495413]
[1749641203479,1.3407,2763.3,2763.1,1.08495413]
[1749641203882,6.33717899,2763.2,2763.1,1.08495413]
[1749641204081,10.50617146,2763.2,2763.1,1.08495413]
[1749641204394,6.88717899,2763.2,2763.1,1.08495413]
[1749641204792,12.02273017,2763.2,2763.1,1.08495413]
[1749641204997,3.61914903,2763.1,2763.0,1.08514955]
[1749641205196,0.55,2763.0,2762.9,1.08514955]
[1749641205403,7.06797899,2763.0,2762.9,1.08514955]
[1749641208575,10.68723342,2763.0,2762.9,1.08514955]
[1749641208994,7.06797899,2763.0,2762.9,1.08514955]
[1749641209194,13.31487348,2763.0,2762.9,1.08514955]
[1749641209505,9.69561905,2763.0,2762.9,1.08514955]
[1749641209807,13.31487348,2763.0,2762.9,1.08514955]
[1749641210109,13.31487348,2763.0,2762.8,1.08514955]
[1749641210271,4.236,2762.9,2762.8,1.08514955]
[1749641211289,7.85538542,2762.9,2762.8,1.08514955]
[1749641211524,9.9174132,2762.9,2762.8,1.08514955]
[1749641211701,9.9174132,2762.9,2762.7,1.08514955]
[1749641212295,9.9174132,2762.9,2762.6,1.08514955]
[1749641212911,6.29802778,2762.9,2762.7,1.08514955]
[1749641213087,6.29802778,2762.9,2762.6,1.08514955]
[1749641213409,4.236,2762.9,2762.6,1.08514955]
[1749641214173,7.85538695,2762.9,2762.6,1.08514955]
[1749641216079,0.1808,2763.0,2762.7,1.08514955]
[1749641216283,3.685,2762.9,2762.7,1.08514955]
[1749641216485,0.8234,2763.6,2762.9,0.778]
[1749641216801,0.1808,2763.7,2763.2,1.08412353]
[1749641217005,3.685,2763.6,2763.3,1.26492353]
[1749641217208,0.1808,2763.7,2763.3,1.26492353]
[1749641217209,3.685,2763.5,2763.3,0.1808]
[1749641217737,0.1808,2763.7,2763.3,0.9603]
[1749641218032,3.685,2763.6,2763.3,2.04442353]
[1749641218184,3.685,2763.5,2763.3,2.04442353]
[1749641218529,3.685,2763.4,2763.3,0.9603]
[1749641218885,3.685,2763.4,2763.3,0.1808]
[1749641219222,10.02217899,2763.4,2763.1,1.26492353]
[1749641219422,6.33717899,2763.4,2763.1,0.1808]
[1749641219736,3.686,2763.3,2763.1,0.1808]
[1749641220084,3.686,2763.3,2763.1,1.26492353]
[1749641220916,3.686,2763.3,2763.0,1.08412353]
[1749641221713,3.686,2763.2,2763.1,0.7576]
[1749641221917,3.685,2763.2,2763.1,0.7576]
[1749641222120,3.685,2763.2,2763.1,2.02252353]
[1749641222514,3.685,2763.2,2763.1,0.9384]
[1749641222692,3.685,2763.2,2763.1,0.1808]
[1749641223660,3.685,2763.2,2763.1,1.26492353]
[1749641224108,3.685,2763.2,2763.1,0.1808]
[1749641224951,3.685,2763.2,2763.1,1.26492353]
[1749641225135,3.685,2763.2,2763.1,0.1808]
[1749641225645,6.33717899,2763.6,2763.1,0.1808]
[1749641225853,3.686,2763.5,2763.1,1.26492353]
[1749641226056,6.33717899,2763.4,2763.1,0.1808]
[1749641227760,3.686,2763.5,2763.1,0.1808]
[1749641227925,3.686,2763.5,2763.1,1.26492353]
[1749641228531,3.686,2763.5,2763.1,0.1808]
[1749641228727,5.17771908,2763.5,2763.1,0.1808]
[1749641229228,1.49171908,2763.5,2763.1,0.1808]
[1749641229554,0.8292,2764.1,2763.2,1.85652353]
[1749641229714,0.1808,2764.0,2763.5,0.7724]
[1749641229917,3.686,2763.9,2763.7,0.1808]
[1749641230553,0.1808,2764.2,2763.7,1.26492353]
[1749641230763,3.687,2764.1,2763.7,1.26492353]
[1749641232556,6.33717899,2764.0,2763.7,1.26492353]
[1749641233058,6.33717899,2764.0,2763.7,0.1808]
[1749641235864,6.88717899,2763.8,2763.5,1.08412353]
[1749641236026,3.686,2763.7,2763.5,1.08412353]
[1749641236227,6.33717899,2763.6,2763.4,1.26492353]
[1749641236446,7.75632426,2763.6,2763.4,1.26492353]
[1749641236754,7.75632426,2763.6,2763.4,0.1808]
[1749641237052,3.686,2763.7,2763.4,0.1808]
[1749641237254,0.9935,2763.9,2763.4,0.1808]
[1749641237467,3.686,2763.8,2763.5,0.7623]
[1749641237675,3.686,2763.7,2763.6,0.1808]
[1749641237827,3.686,2763.7,2763.5,1.48044655]
[1749641238033,3.686,2763.7,2763.6,0.1808]
[1749641239431,4.06452984,2763.7,2763.3,0.1808]
[1749641239630,6.33717899,2763.6,2763.3,0.1808]
[1749641240137,6.33717899,2763.4,2763.3,0.1808]
[1749641240455,6.33717899,2763.4,2763.1,0.1808]
[1749641240456,10.02617899,2763.4,2763.1,0.1808]
[1749641241358,10.89403151,2763.4,2763.1,0.1808]
[1749641242753,11.71133151,2763.4,2763.1,0.1808]
[1749641242953,6.33717899,2763.2,2762.8,0.792]
[1749641243137,0.1808,2763.4,2762.9,0.1808]
[1749641243339,3.69,2763.3,2762.8,0.792]
[1749641243530,3.69,2763.3,2763.1,0.1808]
[1749641244865,0.9981,2763.6,2763.1,0.1808]
[1749641244866,0.55,2763.5,2763.1,0.1808]
[1749641245038,3.69,2763.4,2763.1,0.1808]
[1749641249554,3.61790624,2764.1,2762.9,0.7591]
[1749641249755,0.1808,2763.9,2763.4,0.7591]
[1749641249949,1.32933516,2764.0,2763.4,0.7591]
[1749641250149,3.688,2763.9,2763.7,0.1808]
[1749641250680,0.1808,2764.2,2763.8,0.8194]
[1749641251155,3.689,2764.1,2763.8,0.8194]
[1749641251354,0.1808,2764.4,2763.9,0.1808]
[1749641251578,5.0,2764.6,2763.8,0.8194]
[1749641251764,3.69,2764.5,2764.2,0.1808]
[1749641252774,3.689,2764.4,2764.3,0.7566]
[1749641252982,3.69,2764.4,2764.3,0.7566]
[1749641253376,5.0,2764.6,2764.3,0.7566]
[1749641253579,3.69,2764.4,2764.3,0.7566]
[1749641254690,5.0,2764.6,2764.3,0.7566]
[1749641254894,3.689,2764.5,2764.3,0.7566]
[1749641258874,11.0255454,2764.4,2763.7,0.7827]
[1749641259078,11.2063454,2764.4,2763.9,0.1808]
[1749641259275,14.82387439,2764.4,2763.9,0.1808]
[1749641259478,11.2063454,2764.4,2763.9,0.1808]
[1749641259694,1.88996759,2764.3,2763.9,0.1808]
[1749641259992,5.5075905,2764.3,2763.9,0.1808]
[1749641260366,1.88996759,2764.3,2763.9,0.1808]
[1749641260571,3.689,2764.2,2763.9,0.1808]
[1749641260875,3.688,2764.1,2763.9,0.1808]
[1749641262088,7.30584287,2764.1,2763.9,0.1808]
[1749641262294,3.688,2764.1,2763.9,0.1808]
[1749641263195,0.8061,2764.0,2763.7,0.1808]
[1749641263767,3.688,2764.1,2763.7,0.1808]
[1749641265000,0.55,2764.1,2763.7,0.1808]
[1749641265200,3.688,2764.0,2763.7,0.1808]
[1749641266409,7.30597244,2764.0,2763.7,0.1808]
[1749641266705,7.30597244,2764.0,2763.3,0.8211]
[1749641266706,4.34872025,2763.9,2763.3,0.8211]
[1749641266910,0.91139724,2763.9,2763.4,0.1808]
[1749641267586,3.687,2763.8,2763.6,0.1808]
[1749641267783,10.0,2764.3,2763.7,0.7694]
[1749641267981,10.0,2764.3,2763.8,0.1808]
[1749641267982,3.687,2764.2,2763.8,0.1808]
[1749641268708,3.687,2764.1,2763.8,0.1808]
[1749641269475,3.688,2764.0,2763.8,0.1808]
[1749641269895,0.7553,2764.7,2763.9,0.769]
[1749641270100,3.688,2764.6,2763.9,0.769]
[1749641270286,3.688,2764.6,2764.2,0.1808]
[1749641271024,7.30517358,2764.6,2764.2,0.1808]
[1749641271174,3.688,2764.6,2764.2,0.1808]
[1749641271986,0.9361,2764.7,2764.2,0.1808]
[1749641272179,3.687,2764.6,2764.3,0.1808]
[1749641272381,3.687,2764.6,2764.3,1.0096]
[1749641274516,0.7308,2764.8,2764.3,1.0096]
[1749641274517,3.688,2764.5,2764.3,1.0096]
[1749641275687,0.7308,2764.8,2764.3,1.0096]
[1749641275886,3.687,2764.7,2764.3,1.0096]
[1749641276916,2.06865964,2764.8,2764.3,1.0096]
[1749641278793,3.685,2764.7,2764.3,1.0096]
[1749641280890,0.1808,2764.8,2764.3,1.0096]
[1749641281324,15.0,2765.0,2764.4,6.32664136]
[1749641281501,3.686,2764.8,2764.7,0.1808]
[1749641282092,3.686,2764.8,2764.7,0.9705]
[1749641284322,3.686,2764.8,2764.7,0.1808]
[1749641286532,3.686,2764.8,2764.2,0.7623]
[1749641286850,3.686,2764.8,2764.4,0.1808]
[1749641288439,3.686,2764.8,2764.7,0.1808]
[1749641298473,3.686,2764.8,2764.4,0.1808]
[1749641299068,13.28074607,2764.7,2764.4,0.1808]
[1749641299271,3.61716231,2764.6,2763.9,0.778]
[1749641299473,3.683,2764.5,2764.2,0.1808]
[1749641301266,3.683,2764.4,2764.2,0.1808]
[1749641301455,3.683,2764.3,2764.2,0.1808]
[1749641308311,10.01317715,2764.3,2763.6,0.7729]
[1749641308610,10.01317715,2764.3,2763.9,0.1808]
[1749641309608,6.33017715,2764.0,2763.9,0.1808]
[1749641309904,10.79217715,2764.0,2763.7,0.1808]
[1749641311995,11.88947487,2764.0,2763.7,0.1808]
[1749641313728,5.55929772,2764.0,2763.7,0.1808]
[1749641314917,6.33017715,2763.9,2763.7,0.1808]
[1749641315089,3.683,2763.8,2763.7,0.1808]
[1749641316028,3.683,2763.8,2763.7,1.61934457]
[1749641316180,3.683,2763.8,2763.7,1.26185299]
[1749641316690,0.8167,2764.2,2763.7,1.26185299]
[1749641316891,3.683,2764.1,2763.8,1.08105299]
[1749641317196,3.683,2764.1,2763.9,1.26185299]
[1749641318583,0.7308,2764.4,2763.9,1.26185299]
[1749641318584,3.683,2764.0,2763.9,1.26185299]
[1749641318804,0.7308,2764.4,2763.9,0.1808]
[1749641318983,1.51564772,2764.4,2764.0,1.08095556]
[1749641319320,7.12557715,2764.1,2763.9,1.26175556]
[1749641319522,0.8048,2764.3,2763.9,1.08095556]
[1749641319688,3.683,2764.2,2764.0,1.08095556]
[1749641320019,3.683,2764.2,2764.0,1.26188322]
[1749641320915,6.33017715,2764.7,2764.0,1.08108322]
[1749641321088,2.42411772,2764.7,2764.2,1.08108322]
[1749641321291,3.683,2764.6,2764.3,0.1808]
[1749641321488,3.683,2764.6,2764.3,1.26188322]
[1749641322616,3.683,2764.5,2764.3,2.06698322]
[1749641322822,3.683,2764.4,2764.3,0.9859]
[1749641323685,0.1808,2764.8,2764.3,0.9859]
[1749641323887,3.683,2764.7,2764.4,1.08149632]
[1749641324121,3.683,2764.6,2764.4,1.08149632]
[1749641324821,10.0,2765.0,2764.5,1.08149632]
[1749641324985,10.0,2765.0,2764.5,1.26229632]
[1749641325182,3.683,2764.9,2764.7,1.08149632]
[1749641325506,3.683,2764.8,2764.7,1.08149632]
[1749641325820,3.683,2764.8,2764.7,0.1808]
[1749641326024,3.683,2764.8,2764.7,1.26212861]
[1749641326226,3.683,2764.8,2764.7,0.1808]
[1749641326425,10.0,2765.0,2764.8,0.7936]